bitfinex/quotes_SOLUSD_20250413
["timestamp","ask_amount","ask_price","bid_price","bid_amount"]
[1744517360414,13.5339053,131.46,131.42,0.063]
[1744517360795,47.1406053,131.47,131.42,0.063]
[1744517360995,13.5339053,131.46,131.42,0.063]
[1744517361702,47.1406053,131.47,131.42,13.5969053]
[1744517362419,21.1409053,131.46,131.42,0.063]
[1744517362916,7.607,131.46,131.42,13.5969053]
[1744517363415,21.1409053,131.46,131.42,0.063]
[1744517364606,21.1409053,131.46,131.42,13.5969053]
[1744517364607,7.607,131.46,131.42,13.5969053]
[1744517365314,21.1409053,131.46,131.42,0.063]
[1744517365693,7.607,131.46,131.42,0.063]
[1744517365897,21.1409053,131.46,131.42,0.063]
[1744517366812,7.607,131.46,131.42,13.5969053]
[1744517367621,21.1409053,131.46,131.42,0.063]
[1744517369428,16.29709614,131.46,131.42,0.063]
[1744517369608,8.69009614,131.45,131.42,0.063]
[1744517370323,8.69009614,131.44,131.42,0.063]
[1744517371402,7.6081,131.44,131.42,0.063]
[1744517371609,16.29689614,131.46,131.42,0.063]
[1744517373426,33.6065,131.47,131.42,0.063]
[1744517373724,26.0,131.47,131.44,8.69009614]
[1744517373928,33.6062,131.47,131.43,8.97441928]
[1744517374126,42.29629614,131.47,131.42,8.75309614]
[1744517374526,33.6062,131.47,131.43,8.69009614]
[1744517376031,33.6062,131.47,131.42,16.36199614]
[1744517376408,8.69009614,131.46,131.42,7.6719]
[1744517376715,42.29629614,131.47,131.42,16.36199614]
[1744517378734,8.69009614,131.46,131.42,0.063]
[1744517379929,26.0,131.47,131.42,7.6719]
[1744517380240,42.29649614,131.47,131.42,8.75309614]
[1744517380529,42.29649614,131.47,131.42,0.063]
[1744517380723,42.29649614,131.47,131.42,0.20516157]
[1744517380919,33.6064,131.47,131.42,16.50415771]
[1744517383109,8.69009614,131.44,131.42,0.063]
[1744517383309,8.69009614,131.43,131.42,0.063]
[1744517385311,16.29869614,131.43,131.42,0.063]
[1744517392245,97.44085771,131.43,131.42,0.063]
[1744517395444,26.0,131.4,131.39,0.063]
[1744517395647,34.69009614,131.4,131.39,0.063]
[1744517396821,6.86,131.42,131.39,0.063]
[1744517397035,15.55009614,131.42,131.39,0.063]
[1744517397318,14.4693,131.42,131.39,0.063]
[1744517397522,15.55009614,131.42,131.39,0.063]
[1744517397938,14.4692,131.42,131.39,0.063]
[1744517398148,23.15929614,131.42,131.39,0.063]
[1744517399650,6.86,131.42,131.39,0.063]
[1744517399949,16.29829614,131.44,131.39,0.063]
[1744517400150,26.0,131.44,131.39,0.063]
[1744517400350,8.69009614,131.45,131.4,8.69009614]
[1744517400538,8.69009614,131.44,131.39,8.75309614]
[1744517400738,8.69009614,131.43,131.39,0.063]
[1744517402048,16.29879614,131.43,131.39,0.063]
[1744517404533,8.69009614,131.42,131.39,0.063]
[1744517405851,16.29879614,131.43,131.39,0.063]
[1744517407556,8.69009614,131.42,131.39,0.063]
[1744517407760,16.29939614,131.42,131.39,0.063]
[1744517409131,8.69009614,131.4,131.39,0.063]
[1744517410849,8.83225771,131.4,131.39,0.063]
[1744517411232,16.44255771,131.4,131.39,0.063]
[1744517412949,35.09220657,131.4,131.39,0.063]
[1744517413134,99.79181043,131.39,131.38,0.063]
[1744517413329,99.79181043,131.39,131.36,0.063]
[1744517413330,26.14216157,131.37,131.36,0.063]
[1744517413559,34.83225771,131.37,131.36,0.063]
[1744517413759,32.86,131.37,131.36,0.063]
[1744517413939,26.0,131.37,131.36,0.063]
[1744517414273,34.69009614,131.37,131.36,0.063]
[1744517414941,26.0,131.37,131.36,0.063]
[1744517415164,42.30209614,131.37,131.36,0.063]
[1744517415343,42.44425771,131.37,131.36,0.063]
[1744517415855,0.14216157,131.36,131.33,0.063]
[1744517416031,34.69009614,131.34,131.33,0.063]
[1744517416351,26.0,131.34,131.33,0.063]
[1744517417557,87.86,131.36,131.33,0.063]
[1744517417936,96.55009614,131.36,131.33,0.063]
[1744517418237,104.16269614,131.36,131.33,0.063]
[1744517418560,89.69009614,131.4,131.35,10.21839614]
[1744517418938,89.69009614,131.4,131.35,1.5283]
[1744517419261,97.30039614,131.4,131.35,10.21839614]
[1744517419569,97.30039614,131.4,131.35,17.83149614]
[1744517420266,97.30039614,131.4,131.35,9.1414]
[1744517420562,89.69009614,131.4,131.35,9.1414]
[1744517420860,81.0,131.4,131.36,8.69009614]
[1744517421052,89.69009614,131.4,131.35,17.83149614]
[1744517421246,8.69009614,131.39,131.35,1.5283]
[1744517421451,89.69009614,131.4,131.35,17.83149614]
[1744517421655,81.0,131.4,131.36,8.69009614]
[1744517422359,7.6087,131.43,131.37,8.69009614]
[1744517422543,8.69009614,131.42,131.37,8.69009614]
[1744517422744,16.29939614,131.42,131.36,8.97441928]
[1744517423268,8.69009614,131.41,131.36,8.97441928]
[1744517423456,8.69009614,131.41,131.36,0.28432314]
[1744517423769,8.69009614,131.41,131.36,8.97441928]
[1744517424067,8.69009614,131.41,131.37,7.612]
[1744517424568,16.29939614,131.42,131.37,16.30209614]
[1744517424746,16.29939614,131.42,131.37,7.612]
[1744517425359,8.69009614,131.38,131.33,0.063]
[1744517425560,8.69009614,131.34,131.33,0.063]
[1744517425945,26.0,131.34,131.33,0.063]
[1744517426380,34.69009614,131.34,131.33,0.063]
[1744517427264,47.3623103,131.34,131.33,0.063]
[1744517427765,47.22014873,131.34,131.33,0.063]
[1744517428672,33.6138,131.34,131.33,0.063]
[1744517428966,26.0,131.34,131.33,0.063]
[1744517432580,7.6127,131.36,131.33,0.063]
[1744517433044,21.21904873,131.36,131.33,0.063]
[1744517434751,13.60634873,131.35,131.33,0.063]
[1744517435477,39.60634873,131.34,131.33,0.063]
[1744517436588,47.22014873,131.34,131.33,0.063]
[1744517438375,47.22014873,131.34,131.29,13.60634873]
[1744517438578,13.60634873,131.33,131.29,13.60634873]
[1744517438747,13.60634873,131.33,131.27,8.0701]
[1744517438956,33.6138,131.34,131.27,21.67644873]
[1744517438957,13.60634873,131.32,131.27,21.67644873]
[1744517440076,7.6155,131.31,131.27,8.0701]
[1744517440278,7.6155,131.31,131.27,21.67644873]
[1744517441467,21.22184873,131.31,131.27,8.0701]
[1744517442568,21.22184873,131.31,131.27,21.67644873]
[1744517443178,7.6155,131.31,131.27,21.67644873]
[1744517443556,21.22184873,131.31,131.27,21.67644873]
[1744517444174,13.60634873,131.31,131.27,8.0701]
[1744517444483,13.60634873,131.31,131.27,21.67644873]
[1744517445277,13.60634873,131.31,131.27,21.17644873]
[1744517445583,21.22124873,131.32,131.27,28.79424873]
[1744517445883,7.6149,131.32,131.28,13.60634873]
[1744517446876,114.614,131.34,131.29,13.89067187]
[1744517447081,13.60634873,131.33,131.29,13.60634873]
[1744517447266,13.60634873,131.33,131.28,21.22354873]
[1744517448064,21.22074873,131.33,131.28,21.22354873]
[1744517448266,114.614,131.34,131.29,13.60634873]
[1744517448484,128.22034873,131.34,131.29,13.60634873]
[1744517448688,13.60634873,131.33,131.28,21.22354873]
[1744517449284,16.32232202,131.33,131.28,16.32492202]
[1744517450272,16.32232202,131.33,131.27,15.32996157]
[1744517450472,16.32232202,131.33,131.28,8.99204516]
[1744517451890,16.32232202,131.33,131.28,16.60914516]
[1744517453884,114.614,131.34,131.3,8.70772202]
[1744517454383,123.32172202,131.34,131.29,8.70772202]
[1744517454587,114.614,131.34,131.29,8.70772202]
[1744517454788,123.32172202,131.34,131.29,8.70772202]
[1744517455190,114.614,131.34,131.29,8.70772202]
[1744517455364,123.32172202,131.34,131.29,8.70772202]
[1744517456370,123.32172202,131.34,131.28,16.60914516]
[1744517458302,114.614,131.34,131.29,8.70772202]
[1744517458587,123.32172202,131.34,131.29,16.32422202]
[1744517460091,123.32172202,131.34,131.29,8.70772202]
[1744517460276,8.70772202,131.3,131.27,1.1306]
[1744517460592,8.70772202,131.31,131.27,1.1306]
[1744517461585,16.32352202,131.31,131.27,1.1306]
[1744517463294,8.70772202,131.31,131.27,1.1306]
[1744517464091,16.32362202,131.31,131.27,1.1306]
[1744517466396,8.70772202,131.3,131.27,1.1306]
[1744517466574,8.70772202,131.3,131.24,2.6401231]
[1744517466575,26.0,131.25,131.24,2.6401231]
[1744517468094,16.32672202,131.26,131.24,2.6401231]
[1744517468398,7.619,131.26,131.24,2.6401231]
[1744517468892,8.70772202,131.28,131.24,2.6401231]
[1744517469096,8.70772202,131.27,131.24,2.6401231]
[1744517469301,8.70772202,131.26,131.24,2.6401231]
[1744517470096,16.32662202,131.26,131.24,2.6401231]
[1744517470294,7.6189,131.26,131.24,2.6401231]
[1744517470493,7.6149,131.32,131.25,35.82345559]
[1744517470675,7.6149,131.32,131.28,8.70772202]
[1744517471369,97.32222202,131.33,131.28,8.70772202]
[1744517473997,89.70772202,131.33,131.28,16.32462202]
[1744517474310,81.0,131.33,131.29,8.70772202]
[1744517474869,81.0,131.33,131.28,7.6169]
[1744517475072,81.0,131.33,131.29,8.70772202]
[1744517475696,8.70772202,131.34,131.29,8.70772202]
[1744517476301,8.70772202,131.34,131.29,16.32432202]
[1744517476692,34.70772202,131.31,131.26,7.6181]
[1744517476905,34.70772202,131.31,131.26,16.32582202]
[1744517477090,8.70772202,131.3,131.25,24.36612202]
[1744517477491,26.0,131.31,131.26,8.70772202]
[1744517477712,34.70772202,131.31,131.25,15.6584]
[1744517477874,34.70772202,131.31,131.25,24.36612202]
[1744517478295,42.32352202,131.31,131.25,24.36612202]
[1744517478693,26.0,131.31,131.27,8.70772202]
[1744517479484,26.0,131.31,131.26,8.70772202]
[1744517479685,42.32322202,131.31,131.26,8.70772202]
[1744517480303,42.32322202,131.31,131.25,8.0396]
[1744517480505,42.32322202,131.31,131.26,8.70772202]
[1744517480801,42.32322202,131.31,131.25,8.0396]
[1744517480992,42.32322202,131.31,131.26,8.70772202]
[1744517481706,33.6155,131.31,131.26,8.70772202]
[1744517482006,26.0,131.31,131.27,8.70772202]
[1744517483309,26.0,131.31,131.26,16.32592202]
[1744517483607,26.0,131.31,131.27,8.99204516]
[1744517484709,97.32152202,131.34,131.28,8.70772202]
[1744517484916,81.0,131.34,131.29,8.70772202]
[1744517485109,88.6139,131.34,131.29,8.70772202]
[1744517485415,88.6139,131.34,131.29,16.32422202]
[1744517486616,81.0,131.34,131.3,8.70772202]
[1744517486811,88.6138,131.34,131.3,8.70772202]
[1744517489325,88.6138,131.34,131.29,16.32422202]
[1744517490702,8.70772202,131.32,131.25,26.68924886]
[1744517490908,8.70772202,131.32,131.27,8.70772202]
[1744517491297,97.32152202,131.34,131.28,8.70772202]
[1744517491498,8.70772202,131.33,131.28,8.70772202]
[1744517491694,16.32222202,131.33,131.28,16.32492202]
[1744517492624,8.70772202,131.32,131.28,7.6172]
[1744517493722,8.70772202,131.31,131.25,15.0396]
[1744517493911,8.70772202,131.3,131.25,15.0396]
[1744517494113,8.70772202,131.3,131.25,8.0396]
[1744517494514,8.70772202,131.29,131.25,8.0396]
[1744517495727,16.32482202,131.29,131.25,8.0396]
[1744517496223,8.70772202,131.28,131.25,1.6628]
[1744517496410,34.70772202,131.26,131.24,2.6401231]
[1744517496614,34.70772202,131.25,131.24,2.6401231]
[1744517497616,42.32672202,131.25,131.24,2.6401231]
[1744517498224,89.70772202,131.27,131.24,2.6401231]
[1744517498429,97.32572202,131.27,131.24,2.6401231]
[1744517499334,102.23793047,131.27,131.24,2.6401231]
[1744517501828,21.23793047,131.27,131.24,2.6401231]
[1744517502929,7.6174,131.28,131.24,16.26005357]
[1744517503429,21.23733047,131.28,131.24,2.6401231]
[1744517505335,81.0,131.31,131.25,0.28432314]
[1744517505539,81.0,131.31,131.27,13.61993047]
[1744517505839,81.0,131.31,131.28,13.61993047]
[1744517506030,81.0,131.31,131.27,15.22993047]
[1744517506411,13.61993047,131.33,131.28,13.90425361]
[1744517506610,13.61993047,131.33,131.28,0.28432314]
[1744517506810,13.61993047,131.33,131.28,13.90425361]
[1744517507419,13.61993047,131.33,131.28,21.52125361]
[1744517509018,88.0,131.35,131.3,13.61993047]
[1744517509327,13.61993047,131.34,131.3,13.61993047]
[1744517509636,101.61993047,131.35,131.3,13.61993047]
[1744517510851,13.61993047,131.34,131.3,13.61993047]
[1744517511439,13.61993047,131.34,131.28,7.90132314]
[1744517511645,13.61993047,131.34,131.27,20.25964886]
[1744517511646,13.61993047,131.31,131.27,9.2277]
[1744517511859,13.61993047,131.33,131.28,13.90425361]
[1744517512022,13.61993047,131.34,131.28,0.28432314]
[1744517512221,13.61993047,131.33,131.28,13.90425361]
[1744517512629,95.6132,131.35,131.3,13.61993047]
[1744517512630,88.0,131.35,131.3,13.61993047]
[1744517513033,13.61993047,131.34,131.29,13.61993047]
[1744517513432,13.61993047,131.33,131.28,13.90425361]
[1744517513635,13.61993047,131.33,131.29,7.6167]
[1744517514647,7.6125,131.37,131.3,13.90425361]
[1744517514948,13.61993047,131.34,131.3,6.2705]
[1744517515247,13.61993047,131.33,131.29,7.6167]
[1744517515430,13.61993047,131.33,131.28,7.6171]
[1744517515632,13.61993047,131.32,131.28,7.6171]
[1744517515839,13.61993047,131.33,131.28,21.23703047]
[1744517516141,13.61993047,131.33,131.28,7.6171]
[1744517519255,8.70885221,131.32,131.28,7.6171]
[1744517519833,8.70885221,131.34,131.29,0.28432314]
[1744517520042,8.70885221,131.34,131.29,8.99317535]
[1744517520354,8.70885221,131.34,131.3,7.6161]
[1744517520954,8.70885221,131.33,131.3,7.6161]
[1744517521352,8.70885221,131.33,131.29,7.6165]
[1744517525058,7.6132,131.35,131.29,7.6165]
[1744517525443,8.70885221,131.34,131.29,7.6165]
[1744517526162,8.70885221,131.34,131.29,16.32535221]
[1744517527368,8.70885221,131.33,131.29,0.28432314]
[1744517527861,8.70885221,131.34,131.29,0.28432314]
[1744517528363,8.70885221,131.32,131.28,7.6173]
[1744517530368,8.70885221,131.31,131.27,15.4982]
[1744517530573,8.70885221,131.28,131.24,2.6401231]
[1744517530873,8.70885221,131.25,131.24,2.6401231]
[1744517532960,34.70885221,131.26,131.24,2.6401231]
[1744517533267,81.0,131.31,131.24,2.6401231]
[1744517533268,39.61892985,131.27,131.24,10.2597231]
[1744517533951,26.0,131.27,131.24,10.2597231]
[1744517535361,26.0,131.27,131.24,2.6401231]
[1744517535362,13.61892985,131.26,131.24,2.6401231]
[1744517535555,13.61892985,131.25,131.24,2.6401231]
[1744517536054,13.61892985,131.26,131.24,2.6401231]
[1744517540652,26.0,131.27,131.24,10.2595231]
[1744517540851,26.0,131.28,131.24,23.87845295]
[1744517541057,7.6151,131.32,131.26,13.61892985]
[1744517541279,13.61892985,131.31,131.26,13.61892985]
[1744517541902,13.61892985,131.31,131.26,20.20722985]
[1744517542369,13.61892985,131.31,131.27,7.6178]
[1744517543251,81.0,131.35,131.27,7.6178]
[1744517543446,39.61892985,131.32,131.28,0.28432314]
[1744517543679,39.61892985,131.32,131.27,21.23672985]
[1744517543972,13.61892985,131.32,131.27,21.23672985]
[1744517544478,13.61892985,131.32,131.27,13.61892985]
[1744517545168,13.61892985,131.29,131.25,1.6008]
[1744517545378,13.61892985,131.28,131.25,1.6008]
[1744517546183,13.61892985,131.28,131.25,9.2197]
[1744517549183,7.6163,131.3,131.25,9.2197]
[1744517549489,13.61892985,131.29,131.25,9.2197]
[1744517549657,13.61892985,131.28,131.25,9.2197]
[1744517550572,13.61892985,131.29,131.25,9.2197]
[1744517551385,13.61892985,131.28,131.25,9.2197]
[1744517551585,81.0,131.31,131.26,13.90325299]
[1744517551783,94.61892985,131.31,131.26,13.90325299]
[1744517552088,81.0,131.31,131.27,13.61892985]
[1744517552481,6.88,131.36,131.3,15.25822985]
[1744517552680,13.61892985,131.35,131.3,15.25822985]
[1744517552885,13.61892985,131.34,131.3,1.6393]
[1744517553389,13.61892985,131.35,131.3,15.25822985]
[1744517553784,14.4927,131.36,131.31,7.6155]
[1744517554092,6.88,131.36,131.31,7.6155]
[1744517554274,20.49892985,131.36,131.31,21.23442985]
[1744517554474,13.61892985,131.35,131.31,7.6155]
[1744517555096,20.49892985,131.36,131.31,21.23442985]
[1744517555280,13.61892985,131.35,131.31,7.6155]
[1744517558465,7.6126,131.36,131.3,9.2553]
[1744517558466,13.61892985,131.33,131.3,9.2553]
[1744517559293,13.61892985,131.34,131.3,9.2553]
[1744517559593,13.61892985,131.35,131.3,22.87422985]
[1744517560088,13.61892985,131.36,131.31,0.28432314]
[1744517560395,13.61892985,131.36,131.31,13.90325299]
[1744517560762,81.0,131.37,131.32,13.61892985]
[1744517560763,13.61892985,131.37,131.32,13.61892985]
[1744517561375,7.6411,131.39,131.32,13.61892985]
[1744517561575,13.61892985,131.37,131.32,13.61892985]
[1744517562492,0.03,131.39,131.37,0.28432314]
[1744517562696,0.03,131.39,131.37,13.90325299]
[1744517562986,0.03,131.39,131.37,0.28432314]
[1744517563192,0.03,131.39,131.37,13.90325299]
[1744517564091,0.03,131.39,131.38,13.61892985]
[1744517564479,0.03,131.39,131.38,40.16440185]
[1744517565274,0.03,131.39,131.38,21.51475299]
[1744517565994,0.03,131.39,131.38,40.16440185]
[1744517567167,0.03,131.4,131.39,18.64964886]
[1744517567502,0.03,131.4,131.39,40.04567871]
[1744517567680,0.03,131.4,131.37,14.4918]
[1744517567681,13.64892985,131.4,131.37,14.4918]
[1744517567872,0.03,131.4,131.37,7.6118]
[1744517569703,0.03,131.4,131.36,7.6124]
[1744517569704,13.64892985,131.4,131.36,7.6124]
[1744517570686,13.61892985,131.38,131.35,7.6131]
[1744517570884,13.61892985,131.36,131.33,6.88]
[1744517571077,13.61892985,131.36,131.32,1.6199]
[1744517571278,13.61892985,131.35,131.32,1.6199]
[1744517571482,13.61892985,131.34,131.3,18.64964886]
[1744517571913,13.61892985,131.34,131.31,0.28432314]
[1744517572701,13.61892985,131.35,131.31,7.89982314]
[1744517572897,8.5096,131.39,131.31,26.93872314]
[1744517573073,8.5096,131.39,131.33,0.28432314]
[1744517573074,13.61892985,131.37,131.33,0.28432314]
[1744517573591,13.61892985,131.36,131.32,0.28432314]
[1744517573977,13.61892985,131.37,131.32,0.28432314]
[1744517574191,13.61892985,131.37,131.33,7.6144]
[1744517575295,13.61892985,131.38,131.33,7.6144]
[1744517575496,13.61892985,131.38,131.34,0.28432314]
[1744517575683,20.49892985,131.39,131.34,13.90325299]
[1744517575882,13.61892985,131.39,131.34,13.90325299]
[1744517576701,13.64892985,131.4,131.36,0.28432314]
[1744517576880,13.64892985,131.4,131.35,22.89302985]
[1744517577082,0.03,131.4,131.35,9.2741]
[1744517577400,13.64892985,131.4,131.35,22.89302985]
[1744517579205,39.64892985,131.4,131.35,9.2741]
[1744517579513,13.64892985,131.4,131.35,9.2741]
[1744517579808,13.64892985,131.4,131.35,22.89302985]
[1744517580809,13.64892985,131.4,131.35,9.2741]
[1744517581388,13.61892985,131.38,131.35,7.6132]
[1744517583388,13.61892985,131.38,131.34,7.6138]
[1744517584108,13.61892985,131.39,131.34,7.6138]
[1744517584316,26.03,131.4,131.36,13.61892985]
[1744517584608,0.03,131.4,131.36,13.61892985]
[1744517585914,0.03,131.4,131.37,7.612]
[1744517587409,13.61892985,131.38,131.33,13.61892985]
[1744517587603,13.61892985,131.37,131.33,7.75656157]
[1744517587807,13.61892985,131.37,131.33,7.6144]
[1744517588620,13.61892985,131.38,131.33,21.23332985]
[1744517589419,0.03,131.4,131.34,13.90325299]
[1744517589594,13.61892985,131.39,131.34,13.90325299]
[1744517590218,39.64892985,131.4,131.36,0.28432314]
[1744517590411,0.03,131.4,131.36,13.90325299]
[1744517590712,0.03,131.4,131.39,7.6109]
[1744517592516,0.03,131.4,131.39,7.89522314]
[1744517593617,0.03,131.4,131.39,21.51415299]
[1744517594402,0.03,131.4,131.39,40.16380185]
[1744517594797,0.03,131.4,131.39,40.30596342]
[1744517595497,0.03,131.42,131.4,0.42648471]
[1744517595699,0.03,131.42,131.41,32.26857871]
[1744517595914,0.03,131.42,131.41,40.30476342]
[1744517596400,0.0001,131.42,131.41,40.30476342]
[1744517597030,0.03,131.45,131.41,40.30476342]
[1744517597031,0.03,131.45,131.42,19.07613357]
[1744517597207,0.03,131.45,131.44,14.04541456]
[1744517597519,0.03,131.45,131.44,32.55290185]
[1744517597913,0.03,131.45,131.44,21.51125299]
[1744517598101,0.03,131.45,131.44,7.89232314]
[1744517598415,0.03,131.45,131.43,7.6084]
[1744517599728,13.64892985,131.45,131.42,7.89332314]
[1744517599911,0.03,131.45,131.42,7.89332314]
[1744517600112,13.64892985,131.45,131.42,7.89332314]
[1744517600409,13.64892985,131.45,131.41,7.6095]
[1744517600616,13.61892985,131.42,131.39,6.88]
[1744517600923,13.61892985,131.42,131.39,7.6108]
[1744517601507,13.61892985,131.43,131.39,7.6108]
[1744517603407,0.03,131.45,131.42,7.6091]
[1744517603607,13.61892985,131.43,131.39,18.933972]
[1744517604015,13.61892985,131.44,131.39,32.55290185]
[1744517604323,0.03,131.45,131.42,0.28432314]
[1744517604520,13.64892985,131.45,131.42,0.28432314]
[1744517604725,0.03,131.45,131.42,0.28432314]
[1744517605822,0.03,131.45,131.44,0.28432314]
[1744517606422,13.64892985,131.45,131.42,7.6091]
[1744517607518,0.03,131.45,131.42,7.6091]
[1744517608531,13.64892985,131.45,131.41,7.89382314]
[1744517608736,13.61892985,131.44,131.41,7.89382314]
[1744517609941,13.64892985,131.45,131.41,7.89382314]
[1744517613036,13.61892985,131.44,131.4,14.4901]
[1744517613229,13.61892985,131.41,131.37,18.64964886]
[1744517613423,13.61892985,131.39,131.37,7.612]
[1744517614035,13.61892985,131.4,131.37,7.612]
[1744517616526,13.61892985,131.41,131.37,7.612]
[1744517619546,1.5578,131.44,131.36,0.28432314]
[1744517619547,13.61892985,131.39,131.36,0.28432314]
[1744517619845,13.61892985,131.4,131.36,7.89672314]
[1744517620032,13.61892985,131.39,131.36,7.89672314]
[1744517620650,13.61892985,131.4,131.36,7.89672314]
[1744517621648,1.5578,131.44,131.38,13.61892985]
[1744517621960,13.61892985,131.44,131.39,13.61892985]
[1744517622126,13.61892985,131.43,131.4,7.6103]
[1744517623154,13.61892985,131.41,131.38,0.28432314]
[1744517624327,13.61892985,131.41,131.38,7.89562314]
[1744517624952,13.61892985,131.42,131.38,7.89562314]
[1744517625530,6.89,131.45,131.4,0.14216157]
[1744517625857,13.61892985,131.44,131.4,0.28432314]
[1744517626447,13.61892985,131.43,131.4,0.28432314]
[1744517626750,13.61892985,131.43,131.4,7.89412314]
[1744517627353,13.61892985,131.43,131.4,7.6098]
[1744517628352,13.61892985,131.43,131.39,7.89522314]
[1744517628555,0.03,131.45,131.39,26.544872]
[1744517628867,13.61892985,131.44,131.39,40.16380185]
[1744517631666,13.61892985,131.44,131.41,0.28432314]
[1744517633259,13.61892985,131.43,131.39,28.1777]
[1744517633444,13.61892985,131.43,131.4,7.89452314]
[1744517634273,13.61892985,131.44,131.4,7.89452314]
[1744517635555,13.61892985,131.43,131.4,7.89452314]
[1744517636650,13.61892985,131.44,131.4,7.89452314]
[1744517638271,13.61892985,131.44,131.4,26.544172]
[1744517638855,0.03,131.45,131.41,32.41074028]
[1744517639374,13.61892985,131.44,131.4,26.92032314]
[1744517639671,0.03,131.45,131.42,0.28432314]
[1744517639672,13.64892985,131.45,131.42,0.28432314]
[1744517640969,13.61892985,131.44,131.39,1.5395]
[1744517641172,13.61892985,131.42,131.4,0.28432314]
[1744517641376,13.61892985,131.42,131.39,9.1503]
[1744517641750,13.61892985,131.43,131.39,9.1503]
[1744517645584,13.61892985,131.4,131.36,8.4675]
[1744517645755,13.61892985,131.39,131.36,8.4675]
[1744517645955,13.61892985,131.4,131.36,8.4675]
[1744517646568,13.61892985,131.42,131.37,26.26144886]
[1744517646877,13.61892985,131.42,131.39,7.6109]
[1744517648477,13.61892985,131.44,131.39,7.6109]
[1744517650975,13.61892985,131.43,131.39,7.6109]
[1744517651881,13.61892985,131.44,131.4,0.28432314]
[1744517652582,0.03,131.45,131.4,32.69506342]
[1744517652761,0.03,131.45,131.42,0.28432314]
[1744517653878,0.03,131.45,131.43,7.6086]
[1744517654366,13.64892985,131.45,131.42,7.609]
[1744517657389,8.72119162,131.45,131.42,7.609]
[1744517658483,0.03,131.45,131.42,7.609]
[1744517659063,8.72119162,131.45,131.42,7.609]
[1744517659673,0.03,131.45,131.43,0.28432314]
[1744517660183,8.72119162,131.45,131.43,0.28432314]
[1744517660365,8.69119162,131.44,131.42,7.609]
[1744517660572,8.69119162,131.44,131.41,7.89402314]
[1744517661291,8.69119162,131.43,131.41,7.6097]
[1744517661462,8.69119162,131.42,131.4,7.6101]
[1744517661779,8.69119162,131.43,131.4,7.6101]
[1744517661961,8.69119162,131.44,131.4,26.6359]
[1744517662483,8.69119162,131.44,131.42,7.6091]
[1744517664488,0.03,131.45,131.42,7.6091]
[1744517664688,8.69119162,131.44,131.42,7.6091]
[1744517665479,8.72119162,131.45,131.42,7.6091]
[1744517665658,8.69119162,131.44,131.42,7.6091]
[1744517667072,8.69119162,131.43,131.4,7.6103]
[1744517667583,8.69119162,131.43,131.4,18.64964886]
[1744517667774,8.72119162,131.45,131.41,0.28432314]
[1744517668687,0.03,131.45,131.41,0.28432314]
[1744517668887,0.03,131.45,131.43,0.28432314]
[1744517670993,0.03,131.45,131.44,7.608]
[1744517672391,8.72119162,131.45,131.4,19.0258]
[1744517672575,8.69119162,131.43,131.39,26.26054886]
[1744517672766,8.69119162,131.42,131.39,7.6109]
[1744517673491,8.69119162,131.43,131.39,7.6109]
[1744517674591,8.69119162,131.42,131.39,7.6109]
[1744517674811,8.69119162,131.43,131.39,7.6109]
[1744517676594,8.69119162,131.44,131.4,0.28432314]
[1744517677498,8.72119162,131.45,131.4,27.62516362]
[1744517677674,0.03,131.45,131.4,27.62516362]
[1744517679100,0.03,131.45,131.41,16.30089162]
[1744517679390,0.03,131.45,131.4,7.89452314]
[1744517679391,8.69119162,131.42,131.4,7.89452314]
[1744517679599,0.03,131.45,131.37,7.612]
[1744517679600,8.69119162,131.41,131.37,7.612]
[1744517679800,8.69119162,131.38,131.36,0.063]
[1744517679984,8.69119162,131.37,131.36,0.063]
[1744517680976,26.0,131.35,131.34,0.063]
[1744517681176,42.30439162,131.35,131.34,0.063]
[1744517681379,47.22181278,131.35,131.34,0.063]
[1744517681677,39.60861278,131.35,131.34,0.063]
[1744517682387,47.22181278,131.35,131.34,0.063]
[1744517682776,47.36397435,131.35,131.34,0.063]
[1744517684205,39.60861278,131.35,131.34,0.063]
[1744517684525,47.22181278,131.35,131.34,0.063]
[1744517689307,47.36397435,131.35,131.34,0.063]
[1744517691289,26.0,131.35,131.34,0.063]
[1744517691497,39.60861278,131.35,131.34,0.063]